[Event "Early-Titled-Tuesday-Blitz-February-06-2024"]
[Site "Chess.com"]
[Date "2024.02.06"]
[Round "10"]
[White "Djager97"]
[Black "viniciusrego"]
[Result "1/2-1/2"]
[WhiteElo "2618"]
[BlackElo "2470"]
[TimeControl "180+1"]
[EndTime "9:54:38 PST"]
[Termination "Game drawn by agreement"]

1. e4 {[%clk 0:03:00.9]} 1... c5 {[%clk 0:03:00.1]} 2. Nf3 {[%clk 0:03:01.3]}
2... Nc6 {[%clk 0:03:00.3]} 3. d4 {[%clk 0:03:00.3]} 3... cxd4 {[%clk
0:03:01.2]} 4. Nxd4 {[%clk 0:02:59.8]} 4... g6 {[%clk 0:03:01.9]} 5. Nc3 {[%clk
0:02:59.4]} 5... Bg7 {[%clk 0:03:02.2]} 6. Be3 {[%clk 0:02:59.9]} 6... Nf6
{[%clk 0:03:02.5]} 7. Nxc6 {[%clk 0:03:00.5]} 7... bxc6 {[%clk 0:03:01.9]} 8. e5
{[%clk 0:02:58.8]} 8... Ng8 {[%clk 0:03:02.3]} 9. Bd4 {[%clk 0:02:58.4]} 9...
Nh6 {[%clk 0:02:51.3]} 10. e6 {[%clk 0:02:57.6]} 10... O-O {[%clk 0:02:51.3]}
11. Bxg7 {[%clk 0:02:56.5]} 11... Kxg7 {[%clk 0:02:51.1]} 12. exd7 {[%clk
0:02:56.8]} 12... Qxd7 {[%clk 0:02:49.3]} 13. Qxd7 {[%clk 0:02:56.1]} 13... Bxd7
{[%clk 0:02:50.2]} 14. O-O-O {[%clk 0:02:56]} 14... Be6 {[%clk 0:02:50]} 15. Be2
{[%clk 0:02:49.3]} 15... c5 {[%clk 0:02:37.3]} 16. Bf3 {[%clk 0:02:46.8]} 16...
Rad8 {[%clk 0:02:37.6]} 17. Nd5 {[%clk 0:02:36.5]} 17... Bxd5 {[%clk 0:02:37.3]}
18. Bxd5 {[%clk 0:02:37.4]} 18... Nf5 {[%clk 0:02:37.3]} 19. c3 {[%clk
0:02:32.2]} 19... Rd6 {[%clk 0:02:36.9]} 20. Bc4 {[%clk 0:02:28.9]} 20... Rfd8
{[%clk 0:02:35.8]} 21. Rxd6 {[%clk 0:02:23.7]} 21... exd6 {[%clk 0:02:33.6]} 22.
Re1 {[%clk 0:02:21.8]} 22... d5 {[%clk 0:02:31.7]} 23. Bd3 {[%clk 0:02:21.7]}
23... Kf6 {[%clk 0:02:21.4]} 24. Bxf5 {[%clk 0:02:19.3]} 24... gxf5 {[%clk
0:02:22.3]} 25. f4 {[%clk 0:02:13.5]} 25... h5 {[%clk 0:02:21.6]} 26. Kc2 {[%clk
0:02:11.6]} 26... h4 {[%clk 0:02:21.4]} 27. Kd3 {[%clk 0:01:56.2]} 27... Rg8
{[%clk 0:02:21.6]} 28. Re2 {[%clk 0:01:52.2]} 28... Rg4 {[%clk 0:02:20.3]} 29.
Ke3 {[%clk 0:01:52.7]} 29... Ke6 {[%clk 0:02:17.3]} 30. Kf3+ {[%clk 0:01:52.8]}
30... Kd6 {[%clk 0:02:16.4]} 31. Re5 {[%clk 0:01:52.4]} 31... h3 {[%clk
0:02:16.1]} 32. g3 {[%clk 0:01:49.9]} 32... Rg8 {[%clk 0:02:12.3]} 33. Rxf5
{[%clk 0:01:49.6]} 33... Rb8 {[%clk 0:02:11.2]} 34. b3 {[%clk 0:01:48.9]} 34...
c4 {[%clk 0:02:05]} 35. bxc4 {[%clk 0:01:42.3]} 35... dxc4 {[%clk 0:02:05.9]}
36. Rh5 {[%clk 0:01:22.6]} 36... Rb2 {[%clk 0:02:05.7]} 37. Rxh3 {[%clk
0:01:21.8]} 37... Rxa2 {[%clk 0:02:06.3]} 38. Ke4 {[%clk 0:01:14.6]} 38... Rd2
{[%clk 0:02:02.7]} 39. Rh6+ {[%clk 0:01:12.6]} 39... Ke7 {[%clk 0:02:00.6]} 40.
Ra6 {[%clk 0:01:02.3]} 40... Rxh2 {[%clk 0:01:43.1]} 41. Rxa7+ {[%clk
0:01:01.1]} 41... Ke6 {[%clk 0:01:43.1]} 42. Ra6+ {[%clk 0:00:59.9]} 42... Ke7
{[%clk 0:01:43.3]} 43. f5 {[%clk 0:00:56.1]} 43... Rc2 {[%clk 0:01:38.3]} 44.
f6+ {[%clk 0:00:56.2]} 44... Ke8 {[%clk 0:01:35.3]} 45. Kd4 {[%clk 0:00:50.3]}
45... Rg2 {[%clk 0:01:32.3]} 46. Kxc4 {[%clk 0:00:49.9]} 46... Rxg3 {[%clk
0:01:32.5]} 47. Kb5 {[%clk 0:00:48.2]} 47... Rxc3 {[%clk 0:01:31.8]} 48. Kb4
{[%clk 0:00:42.5]} 48... Rc1 {[%clk 0:01:29.8]} 49. Rd6 {[%clk 0:00:42.1]} 49...
Rc7 {[%clk 0:01:26.2]} 50. Rd5 {[%clk 0:00:36.9]} 50... Rc6 {[%clk 0:01:25.4]}
51. Re5+ {[%clk 0:00:32.2]} 51... Re6 {[%clk 0:01:21.9]} 52. Rxe6+ {[%clk
0:00:28.6]} 52... fxe6 {[%clk 0:01:22.8]} 53. Kc5 {[%clk 0:00:28.8]} 53... Kf7
{[%clk 0:01:22.8]} 54. Kd4 {[%clk 0:00:29.5]} 54... Kxf6 {[%clk 0:01:23]} 55.
Ke4 {[%clk 0:00:30.4]} 55... Ke7 {[%clk 0:01:22.9]} 56. Ke5 {[%clk 0:00:30.6]}
56... Kd7 {[%clk 0:01:23]} 1/2-1/2

[Event "Early-Titled-Tuesday-Blitz-February-06-2024"]
[Site "Chess.com"]
[Date "2024.02.06"]
[Round "10"]
[White "ccccvhhhj"]
[Black "xakevicius91"]
[Result "0-1"]
[WhiteElo "2448"]
[BlackElo "2611"]
[TimeControl "180+1"]
[EndTime "9:54:38 PST"]
[Termination "xakevicius91 won by resignation"]

1. e4 {[%clk 0:03:00.9]} 1... c5 {[%clk 0:02:58.2]} 2. Nf3 {[%clk 0:03:01]} 2...
a6 {[%clk 0:02:58.2]} 3. b4 {[%clk 0:03:01]} 3... cxb4 {[%clk 0:02:57.5]} 4. a3
{[%clk 0:03:01.7]} 4... b3 {[%clk 0:02:57.6]} 5. cxb3 {[%clk 0:03:01.6]} 5...
Nf6 {[%clk 0:02:58.3]} 6. e5 {[%clk 0:03:01.3]} 6... Nd5 {[%clk 0:02:57.7]} 7.
d4 {[%clk 0:03:00.8]} 7... d6 {[%clk 0:02:57.6]} 8. Bd3 {[%clk 0:02:59.1]} 8...
e6 {[%clk 0:02:58]} 9. O-O {[%clk 0:02:58.9]} 9... b5 {[%clk 0:02:58]} 10. Bg5
{[%clk 0:02:44.6]} 10... Be7 {[%clk 0:02:54.9]} 11. Bxe7 {[%clk 0:02:44.8]}
11... Qxe7 {[%clk 0:02:55.8]} 12. Nbd2 {[%clk 0:02:44.9]} 12... Bb7 {[%clk
0:02:55.8]} 13. Ne4 {[%clk 0:02:44.7]} 13... dxe5 {[%clk 0:02:56]} 14. dxe5
{[%clk 0:02:45.6]} 14... O-O {[%clk 0:02:55.6]} 15. Nd6 {[%clk 0:02:40.4]} 15...
Ra7 {[%clk 0:02:44.6]} 16. Qc2 {[%clk 0:02:04.4]} 16... f5 {[%clk 0:02:42.3]}
17. Qc5 {[%clk 0:01:29.2]} 17... Ra8 {[%clk 0:02:29.7]} 18. Rac1 {[%clk
0:00:58.4]} 18... Nd7 {[%clk 0:01:54.4]} 19. Qd4 {[%clk 0:00:54.6]} 19... Rab8
{[%clk 0:01:50.7]} 20. Rc7 {[%clk 0:00:53.3]} 20... Nxc7 {[%clk 0:01:49.9]} 21.
Qa7 {[%clk 0:00:49.5]} 21... Bxf3 {[%clk 0:01:38.9]} 22. Qxc7 {[%clk 0:00:48.6]}
22... Bd5 {[%clk 0:01:35.7]} 23. b4 {[%clk 0:00:46.6]} 23... Qd8 {[%clk
0:01:34.2]} 24. Qc3 {[%clk 0:00:21.6]} 24... Rc8 {[%clk 0:01:01.7]} 25. Nxc8
{[%clk 0:00:20.9]} 25... Qxc8 {[%clk 0:01:02.6]} 26. Qd4 {[%clk 0:00:21.3]}
26... Qc7 {[%clk 0:01:01.2]} 27. Re1 {[%clk 0:00:20.7]} 27... Rc8 {[%clk
0:01:00.5]} 28. h3 {[%clk 0:00:20.1]} 28... Qc3 {[%clk 0:01:00.2]} 29. Qe3
{[%clk 0:00:19.4]} 29... Qxa3 {[%clk 0:00:54.7]} 30. Rd1 {[%clk 0:00:16.3]}
30... Qxb4 {[%clk 0:00:49.7]} 31. Bxf5 {[%clk 0:00:16.1]} 31... Qc3 {[%clk
0:00:45]} 32. Bd3 {[%clk 0:00:13.6]} 32... Qxe5 {[%clk 0:00:44.1]} 33. Qg3
{[%clk 0:00:13]} 33... Qxg3 {[%clk 0:00:43.5]} 34. fxg3 {[%clk 0:00:13.9]} 34...
Nf6 {[%clk 0:00:41.8]} 0-1

[Event "Early-Titled-Tuesday-Blitz-February-06-2024"]
[Site "Chess.com"]
[Date "2024.02.06"]
[Round "10"]
[White "ProChessWICTH"]
[Black "CarlosjPineror"]
[Result "0-1"]
[WhiteElo "2518"]
[BlackElo "2706"]
[TimeControl "180+1"]
[EndTime "9:54:39 PST"]
[Termination "CarlosjPineror won on time"]

1. e4 {[%clk 0:03:00.9]} 1... c5 {[%clk 0:02:58.3]} 2. Nf3 {[%clk 0:03:00.8]}
2... e6 {[%clk 0:02:58.4]} 3. Bd3 {[%clk 0:03:00.4]} 3... Nc6 {[%clk 0:02:57.8]}
4. O-O {[%clk 0:02:59.8]} 4... Qc7 {[%clk 0:02:58.3]} 5. c3 {[%clk 0:02:59]}
5... Nf6 {[%clk 0:02:58.8]} 6. Bc2 {[%clk 0:02:59]} 6... d5 {[%clk 0:02:57.4]}
7. exd5 {[%clk 0:02:58]} 7... Nxd5 {[%clk 0:02:53.9]} 8. d4 {[%clk 0:02:57]}
8... Bd7 {[%clk 0:02:53.3]} 9. Re1 {[%clk 0:02:56.7]} 9... cxd4 {[%clk
0:02:51.6]} 10. Nxd4 {[%clk 0:02:56.2]} 10... Nxd4 {[%clk 0:02:50.8]} 11. Qxd4
{[%clk 0:02:54.6]} 11... O-O-O {[%clk 0:02:51.2]} 12. Qxa7 {[%clk 0:02:51.2]}
12... Bc5 {[%clk 0:02:40.7]} 13. Qa8+ {[%clk 0:02:47.9]} 13... Qb8 {[%clk
0:02:41]} 14. Qxb8+ {[%clk 0:02:47]} 14... Kxb8 {[%clk 0:02:41.9]} 15. Nd2
{[%clk 0:02:41.1]} 15... f6 {[%clk 0:02:33.8]} 16. Ne4 {[%clk 0:02:40.6]} 16...
Ba7 {[%clk 0:02:30.7]} 17. a3 {[%clk 0:02:17.3]} 17... Bc6 {[%clk 0:02:18.1]}
18. c4 {[%clk 0:01:45.7]} 18... Ne7 {[%clk 0:02:11.5]} 19. Nc3 {[%clk
0:01:30.9]} 19... e5 {[%clk 0:02:04.5]} 20. Kf1 {[%clk 0:01:21.9]} 20... Bd4
{[%clk 0:02:03.8]} 21. Ne2 {[%clk 0:01:11.7]} 21... Bb6 {[%clk 0:01:49.9]} 22.
b4 {[%clk 0:01:07.9]} 22... h5 {[%clk 0:01:47.2]} 23. b5 {[%clk 0:00:37]} 23...
Bd7 {[%clk 0:01:44.8]} 24. Be3 {[%clk 0:00:37.4]} 24... Ba5 {[%clk 0:01:43.2]}
25. Red1 {[%clk 0:00:36.2]} 25... Be6 {[%clk 0:01:43.7]} 26. Bb3 {[%clk
0:00:23.9]} 26... Nf5 {[%clk 0:01:39.1]} 27. Rac1 {[%clk 0:00:19.8]} 27... Nxe3+
{[%clk 0:01:31.2]} 28. fxe3 {[%clk 0:00:20.7]} 28... Rxd1+ {[%clk 0:01:31.1]}
29. Rxd1 {[%clk 0:00:20.5]} 29... Bb6 {[%clk 0:01:30.9]} 30. e4 {[%clk
0:00:19.4]} 30... Bc5 {[%clk 0:01:30.1]} 31. a4 {[%clk 0:00:18.9]} 31... Bg4
{[%clk 0:01:29.9]} 32. Rd5 {[%clk 0:00:17.3]} 32... b6 {[%clk 0:01:26.7]} 33. h3
{[%clk 0:00:12.8]} 33... Be6 {[%clk 0:01:26.8]} 34. Rd1 {[%clk 0:00:13.3]} 34...
h4 {[%clk 0:01:27]} 35. Nc1 {[%clk 0:00:09.2]} 35... Bd4 {[%clk 0:01:25.4]} 36.
Ne2 {[%clk 0:00:09.2]} 36... Bc5 {[%clk 0:01:24.4]} 37. Rd3 {[%clk 0:00:09.2]}
37... Rc8 {[%clk 0:01:23.9]} 38. Rd1 {[%clk 0:00:06.1]} 38... Bb4 {[%clk
0:01:22.3]} 39. Rc1 {[%clk 0:00:06.4]} 39... Rd8 {[%clk 0:01:19.8]} 40. Kf2
{[%clk 0:00:02.3]} 40... Rd3 {[%clk 0:01:13.4]} 41. Bc2 {[%clk 0:00:01.9]} 41...
Ra3 {[%clk 0:01:14]} 42. Rd1 {[%clk 0:00:02]} 42... Bc5+ {[%clk 0:01:14.1]} 43.
Kf1 {[%clk 0:00:02.1]} 43... Bxc4 {[%clk 0:01:14.8]} 0-1

[Event "Early-Titled-Tuesday-Blitz-February-06-2024"]
[Site "Chess.com"]
[Date "2024.02.06"]
[Round "10"]
[White "abhidabhi"]
[Black "DenLaz"]
[Result "1-0"]
[WhiteElo "2927"]
[BlackElo "3046"]
[TimeControl "180+1"]
[EndTime "9:54:44 PST"]
[Termination "abhidabhi won on time"]

1. e4 {[%clk 0:03:00.9]} 1... c5 {[%clk 0:03:00]} 2. Nf3 {[%clk 0:03:00.7]} 2...
e6 {[%clk 0:03:00.6]} 3. Nc3 {[%clk 0:02:59.2]} 3... Nc6 {[%clk 0:03:00.8]} 4.
h3 {[%clk 0:02:59.5]} 4... a6 {[%clk 0:02:58.8]} 5. d4 {[%clk 0:02:59.3]} 5...
cxd4 {[%clk 0:02:59]} 6. Nxd4 {[%clk 0:03:00.2]} 6... Qc7 {[%clk 0:02:59.4]} 7.
Nxc6 {[%clk 0:03:00.9]} 7... bxc6 {[%clk 0:02:59.3]} 8. Bd3 {[%clk 0:03:00.2]}
8... d5 {[%clk 0:02:59.9]} 9. O-O {[%clk 0:02:57.5]} 9... Nf6 {[%clk 0:03:00.4]}
10. Re1 {[%clk 0:02:51.7]} 10... Be7 {[%clk 0:03:00]} 11. Qe2 {[%clk 0:02:34.2]}
11... O-O {[%clk 0:02:59.2]} 12. Bd2 {[%clk 0:02:34]} 12... Bb7 {[%clk
0:02:54.5]} 13. e5 {[%clk 0:02:25.4]} 13... Nd7 {[%clk 0:02:54.3]} 14. Na4
{[%clk 0:02:25.1]} 14... c5 {[%clk 0:02:52.5]} 15. c4 {[%clk 0:02:24.9]} 15...
dxc4 {[%clk 0:02:43]} 16. Be4 {[%clk 0:02:21.5]} 16... Rfd8 {[%clk 0:02:15.6]}
17. Bxb7 {[%clk 0:02:07.1]} 17... Qxb7 {[%clk 0:02:16.5]} 18. Ba5 {[%clk
0:02:06.8]} 18... Rdc8 {[%clk 0:02:16.5]} 19. Rad1 {[%clk 0:01:58.3]} 19... Bf8
{[%clk 0:01:51.5]} 20. Qxc4 {[%clk 0:01:54.6]} 20... Qb5 {[%clk 0:01:46.5]} 21.
Qe4 {[%clk 0:01:31.4]} 21... c4 {[%clk 0:01:17.2]} 22. Nc3 {[%clk 0:01:27.2]}
22... Qxa5 {[%clk 0:01:11.1]} 23. Rxd7 {[%clk 0:01:27]} 23... Bb4 {[%clk
0:01:02.2]} 24. Qf4 {[%clk 0:01:14.7]} 24... Rf8 {[%clk 0:01:01]} 25. Re3 {[%clk
0:01:14]} 25... Bxc3 {[%clk 0:00:55.2]} 26. Rxc3 {[%clk 0:01:09.1]} 26... Qxa2
{[%clk 0:00:55.5]} 27. Rf3 {[%clk 0:01:06.2]} 27... Qb1+ {[%clk 0:00:55.5]} 28.
Kh2 {[%clk 0:01:06.1]} 28... Qg6 {[%clk 0:00:54.2]} 29. Qxc4 {[%clk 0:01:05.5]}
29... Rab8 {[%clk 0:00:47.4]} 30. b3 {[%clk 0:00:59.4]} 30... Qg5 {[%clk
0:00:38.1]} 31. Qc7 {[%clk 0:00:56.5]} 31... h6 {[%clk 0:00:05.5]} 32. Rdxf7
{[%clk 0:00:56.3]} 32... Rxf7 {[%clk 0:00:03]} 33. Qxb8+ {[%clk 0:00:54.9]} 1-0

[Event "Early-Titled-Tuesday-Blitz-February-06-2024"]
[Site "Chess.com"]
[Date "2024.02.06"]
[Round "10"]
[White "Happy1712Drummer"]
[Black "the_blue_pill"]
[Result "1-0"]
[WhiteElo "2389"]
[BlackElo "2283"]
[TimeControl "180+1"]
[EndTime "9:54:47 PST"]
[Termination "Happy1712Drummer won by resignation"]

1. e4 {[%clk 0:02:54]} 1... c5 {[%clk 0:02:59]} 2. Nf3 {[%clk 0:02:53.4]} 2...
d6 {[%clk 0:02:59.2]} 3. Bb5+ {[%clk 0:02:53.9]} 3... Bd7 {[%clk 0:02:59.2]} 4.
Bxd7+ {[%clk 0:02:54.4]} 4... Qxd7 {[%clk 0:03:00.1]} 5. O-O {[%clk 0:02:54.9]}
5... Nc6 {[%clk 0:03:00.6]} 6. d3 {[%clk 0:02:55.5]} 6... d5 {[%clk 0:03:01.1]}
7. exd5 {[%clk 0:02:54.1]} 7... Qxd5 {[%clk 0:03:00.4]} 8. Nc3 {[%clk
0:02:54.7]} 8... Qd7 {[%clk 0:02:58.3]} 9. Re1 {[%clk 0:02:53.4]} 9... e6 {[%clk
0:02:54.5]} 10. Bf4 {[%clk 0:02:40.9]} 10... Nf6 {[%clk 0:02:40.2]} 11. Ne4
{[%clk 0:02:03.2]} 11... Be7 {[%clk 0:02:41.1]} 12. Ne5 {[%clk 0:01:50.1]} 12...
Nxe5 {[%clk 0:02:37.1]} 13. Bxe5 {[%clk 0:01:51]} 13... Nxe4 {[%clk 0:02:35.5]}
14. Rxe4 {[%clk 0:01:51.7]} 14... O-O {[%clk 0:02:26.3]} 15. Qg4 {[%clk
0:01:21.5]} 15... g6 {[%clk 0:02:21.2]} 16. Qh3 {[%clk 0:01:06.1]} 16... Rad8
{[%clk 0:02:01.3]} 17. Rae1 {[%clk 0:01:04]} 17... f6 {[%clk 0:01:59.3]} 18. Bc3
{[%clk 0:01:01.7]} 18... e5 {[%clk 0:01:57.7]} 19. Qxd7 {[%clk 0:00:58.5]} 19...
Rxd7 {[%clk 0:01:57.6]} 20. f4 {[%clk 0:00:59.3]} 20... Bd6 {[%clk 0:01:47.9]}
21. fxe5 {[%clk 0:00:58]} 21... fxe5 {[%clk 0:01:47.4]} 22. Bxe5 {[%clk
0:00:58.4]} 22... Bxe5 {[%clk 0:01:48]} 23. Rxe5 {[%clk 0:00:59.3]} 23... b6
{[%clk 0:01:48.4]} 24. Re7 {[%clk 0:00:54.9]} 24... Rf7 {[%clk 0:01:47.1]} 25.
Rxd7 {[%clk 0:00:50.4]} 25... Rxd7 {[%clk 0:01:46.4]} 26. Kf2 {[%clk 0:00:50.8]}
26... Kf7 {[%clk 0:01:46]} 27. Re4 {[%clk 0:00:49.8]} 27... Kf6 {[%clk
0:01:44.3]} 28. Ke3 {[%clk 0:00:50.2]} 28... Rd6 {[%clk 0:01:39.1]} 29. c3
{[%clk 0:00:46]} 29... Rd5 {[%clk 0:01:37.2]} 30. g4 {[%clk 0:00:44.1]} 30... h5
{[%clk 0:01:36.1]} 31. h3 {[%clk 0:00:43.1]} 31... hxg4 {[%clk 0:01:36]} 32.
hxg4 {[%clk 0:00:44]} 32... Rd7 {[%clk 0:01:35.5]} 33. a4 {[%clk 0:00:42.2]}
33... Kg5 {[%clk 0:01:35.2]} 34. b4 {[%clk 0:00:35.2]} 34... cxb4 {[%clk
0:01:31.5]} 35. cxb4 {[%clk 0:00:35.5]} 35... Rf7 {[%clk 0:01:25.8]} 36. d4
{[%clk 0:00:31.3]} 36... Rf1 {[%clk 0:01:23.1]} 37. d5 {[%clk 0:00:31.3]} 37...
Re1+ {[%clk 0:01:01.2]} 38. Kd4 {[%clk 0:00:29.9]} 38... Rd1+ {[%clk 0:00:44.5]}
39. Ke5 {[%clk 0:00:28.9]} 39... Kh4 {[%clk 0:00:44.8]} 40. d6 {[%clk
0:00:27.8]} 40... g5 {[%clk 0:00:44]} 41. Ke6 {[%clk 0:00:26]} 1-0

[Event "Early-Titled-Tuesday-Blitz-February-06-2024"]
[Site "Chess.com"]
[Date "2024.02.06"]
[Round "10"]
[White "Vazabanga"]
[Black "verrbaa"]
[Result "1-0"]
[WhiteElo "2633"]
[BlackElo "2502"]
[TimeControl "180+1"]
[EndTime "9:54:48 PST"]
[Termination "Vazabanga won on time"]

1. d4 {[%clk 0:02:55.7]} 1... Nf6 {[%clk 0:02:59]} 2. c4 {[%clk 0:02:56]} 2...
e6 {[%clk 0:02:57.4]} 3. g3 {[%clk 0:02:56.3]} 3... d5 {[%clk 0:02:56.8]} 4. Nf3
{[%clk 0:02:56]} 4... dxc4 {[%clk 0:02:56.2]} 5. Bg2 {[%clk 0:02:55.6]} 5... a6
{[%clk 0:02:56.3]} 6. O-O {[%clk 0:02:55.4]} 6... Nc6 {[%clk 0:02:56.5]} 7. Nc3
{[%clk 0:02:55.3]} 7... Rb8 {[%clk 0:02:52.1]} 8. e4 {[%clk 0:02:55.4]} 8... Nb4
{[%clk 0:02:21.5]} 9. Ne5 {[%clk 0:02:46.2]} 9... c5 {[%clk 0:01:53.9]} 10. d5
{[%clk 0:02:40.2]} 10... Nd3 {[%clk 0:01:26.2]} 11. Nxc4 {[%clk 0:02:29.3]}
11... Nxc1 {[%clk 0:01:25.7]} 12. Rxc1 {[%clk 0:02:30.2]} 12... b5 {[%clk
0:01:18.4]} 13. Ne5 {[%clk 0:02:27.5]} 13... Bb7 {[%clk 0:01:18]} 14. dxe6
{[%clk 0:02:05.4]} 14... fxe6 {[%clk 0:01:17.6]} 15. Qe2 {[%clk 0:02:00.4]}
15... Be7 {[%clk 0:01:14.6]} 16. Bh3 {[%clk 0:01:34.4]} 16... Qb6 {[%clk
0:01:06.3]} 17. Nd3 {[%clk 0:00:40.2]} 17... g5 {[%clk 0:00:06.1]} 18. e5 {[%clk
0:00:25.5]} 18... Qc6 {[%clk 0:00:06.3]} 19. f3 {[%clk 0:00:25.8]} 19... Nd5
{[%clk 0:00:06.2]} 20. Ne4 {[%clk 0:00:21.1]} 20... c4 {[%clk 0:00:06.1]} 21.
Ndf2 {[%clk 0:00:19.3]} 21... Rg8 {[%clk 0:00:05.6]} 22. Ng4 {[%clk 0:00:18.5]}
1-0

[Event "Early-Titled-Tuesday-Blitz-February-06-2024"]
[Site "Chess.com"]
[Date "2024.02.06"]
[Round "10"]
[White "DevikBronstein"]
[Black "rasmussvane"]
[Result "0-1"]
[WhiteElo "2903"]
[BlackElo "2983"]
[TimeControl "180+1"]
[EndTime "9:54:51 PST"]
[Termination "rasmussvane won by resignation"]

1. Nf3 {[%clk 0:03:00.9]} 1... d5 {[%clk 0:02:58.3]} 2. g3 {[%clk 0:03:01.1]}
2... Nf6 {[%clk 0:02:53.8]} 3. Bg2 {[%clk 0:03:00.8]} 3... e6 {[%clk 0:02:54.5]}
4. c4 {[%clk 0:03:00.1]} 4... Be7 {[%clk 0:02:54.5]} 5. d4 {[%clk 0:02:55.9]}
5... O-O {[%clk 0:02:53.9]} 6. Qd3 {[%clk 0:02:56]} 6... b6 {[%clk 0:02:48.2]}
7. cxd5 {[%clk 0:02:54.1]} 7... Ba6 {[%clk 0:02:46.1]} 8. Qc2 {[%clk 0:02:47.2]}
8... Nxd5 {[%clk 0:02:40.1]} 9. O-O {[%clk 0:02:44.4]} 9... c5 {[%clk
0:02:29.7]} 10. dxc5 {[%clk 0:02:38.7]} 10... Bxc5 {[%clk 0:02:26.1]} 11. Ng5
{[%clk 0:02:36.2]} 11... g6 {[%clk 0:02:19.2]} 12. a3 {[%clk 0:02:23.9]} 12...
Nd7 {[%clk 0:02:07.7]} 13. Rd1 {[%clk 0:02:08.2]} 13... Rc8 {[%clk 0:02:03]} 14.
e4 {[%clk 0:02:08.3]} 14... Ne3 {[%clk 0:01:41.3]} 15. Bxe3 {[%clk 0:01:57.5]}
15... Bxe3 {[%clk 0:01:39.8]} 16. Qa4 {[%clk 0:01:57.5]} 16... Be2 {[%clk
0:00:45.9]} 17. Nc3 {[%clk 0:00:49.4]} 17... Bxd1 {[%clk 0:00:42.6]} 18. Rxd1
{[%clk 0:00:49.2]} 18... Qxg5 {[%clk 0:00:32.4]} 19. Rxd7 {[%clk 0:00:48.2]}
19... Bc1 {[%clk 0:00:30.4]} 20. Qc2 {[%clk 0:00:42.4]} 20... Rfd8 {[%clk
0:00:26.1]} 21. h4 {[%clk 0:00:36.1]} 21... Qh6 {[%clk 0:00:25.2]} 22. Rxd8+
{[%clk 0:00:22.9]} 22... Rxd8 {[%clk 0:00:25.5]} 23. Ne2 {[%clk 0:00:23.6]}
23... Qd2 {[%clk 0:00:22.4]} 24. Qxc1 {[%clk 0:00:07.9]} 24... Qxc1+ {[%clk
0:00:19.8]} 25. Nxc1 {[%clk 0:00:07.8]} 25... Rd1+ {[%clk 0:00:20.5]} 0-1

[Event "Early-Titled-Tuesday-Blitz-February-06-2024"]
[Site "Chess.com"]
[Date "2024.02.06"]
[Round "10"]
[White "IriBu"]
[Black "Leonid_Starozhilov"]
[Result "0-1"]
[WhiteElo "2550"]
[BlackElo "2726"]
[TimeControl "180+1"]
[EndTime "9:54:51 PST"]
[Termination "Leonid_Starozhilov won by checkmate"]

1. d4 {[%clk 0:03:00.9]} 1... Nf6 {[%clk 0:03:00.1]} 2. Nf3 {[%clk 0:03:01.1]}
2... g6 {[%clk 0:03:00.4]} 3. g3 {[%clk 0:03:00.3]} 3... Bg7 {[%clk 0:03:00.6]}
4. Bg2 {[%clk 0:03:01]} 4... O-O {[%clk 0:03:01]} 5. O-O {[%clk 0:03:01.7]} 5...
d6 {[%clk 0:03:01.4]} 6. Nbd2 {[%clk 0:03:02.3]} 6... Nc6 {[%clk 0:02:58.4]} 7.
e4 {[%clk 0:03:01.6]} 7... Bg4 {[%clk 0:02:56.6]} 8. c3 {[%clk 0:03:00.9]} 8...
e5 {[%clk 0:02:54.9]} 9. d5 {[%clk 0:02:47.5]} 9... Ne7 {[%clk 0:02:51.3]} 10.
h3 {[%clk 0:02:47.9]} 10... Bxf3 {[%clk 0:02:42.6]} 11. Nxf3 {[%clk 0:02:48.8]}
11... Nd7 {[%clk 0:02:40.4]} 12. c4 {[%clk 0:02:46.8]} 12... a5 {[%clk
0:02:40.4]} 13. b3 {[%clk 0:02:44.9]} 13... Nc5 {[%clk 0:02:32.3]} 14. Qe2
{[%clk 0:02:36.6]} 14... b6 {[%clk 0:02:31.6]} 15. Ne1 {[%clk 0:02:30.2]} 15...
f5 {[%clk 0:02:25.9]} 16. Bg5 {[%clk 0:02:17.7]} 16... Qd7 {[%clk 0:01:50.4]}
17. Bxe7 {[%clk 0:02:15.9]} 17... Qxe7 {[%clk 0:01:51.3]} 18. Nd3 {[%clk
0:02:16.2]} 18... f4 {[%clk 0:01:46.8]} 19. Rab1 {[%clk 0:02:08.4]} 19... Rf7
{[%clk 0:01:28.9]} 20. Bf3 {[%clk 0:01:50.1]} 20... Raf8 {[%clk 0:01:18.6]} 21.
Nxc5 {[%clk 0:01:47.3]} 21... bxc5 {[%clk 0:00:37.1]} 22. Bg4 {[%clk 0:01:47.1]}
22... Kh8 {[%clk 0:00:22.3]} 23. Be6 {[%clk 0:01:46.2]} 23... Rf6 {[%clk
0:00:22.8]} 24. a3 {[%clk 0:01:44.2]} 24... h5 {[%clk 0:00:14.3]} 25. b4 {[%clk
0:01:41.5]} 25... axb4 {[%clk 0:00:15.1]} 26. axb4 {[%clk 0:01:42.4]} 26... cxb4
{[%clk 0:00:16]} 27. Rxb4 {[%clk 0:01:42.5]} 27... fxg3 {[%clk 0:00:15.6]} 28.
f3 {[%clk 0:01:41.5]} 28... Ra8 {[%clk 0:00:06.3]} 29. Rfb1 {[%clk 0:01:19.3]}
29... Bh6 {[%clk 0:00:05.6]} 30. Rb8+ {[%clk 0:01:14.9]} 30... Rxb8 {[%clk
0:00:04.6]} 31. Rxb8+ {[%clk 0:01:14.4]} 31... Rf8 {[%clk 0:00:05.4]} 32. Qb2
{[%clk 0:01:11.7]} 32... Qg5 {[%clk 0:00:03]} 33. Rxf8+ {[%clk 0:01:08.6]} 33...
Bxf8 {[%clk 0:00:03.9]} 34. Kg2 {[%clk 0:01:05.1]} 34... Qe3 {[%clk 0:00:04]}
35. Kxg3 {[%clk 0:01:02]} 35... Qg1+ {[%clk 0:00:03.8]} 36. Qg2 {[%clk
0:00:49.3]} 36... h4+ {[%clk 0:00:03]} 37. Kxh4 {[%clk 0:00:48.6]} 37... Qxg2
{[%clk 0:00:03.6]} 38. Bg4 {[%clk 0:00:47.6]} 38... Be7# {[%clk 0:00:04.2]} 0-1